fUST/lending_fUST_20251114
["ID","MTS","AMOUNT","RATE_DAILY","PERIOD"]
[393930799,1763103040554,-500.0,0.00039625,14]
[393930800,1763103040564,-500.0,0.00039625,14]
[393930801,1763103040573,-8434.46,0.00039625,3]
[393930802,1763103040583,-8434.46,0.00039625,3]
[393930803,1763103040592,-8434.46,0.00039625,3]
[393930804,1763103040607,-8434.46,0.00039625,3]
[393930805,1763103040617,-8434.46,0.00039625,3]
[393930806,1763103040627,-8434.46,0.00039625,3]
[393930807,1763103040638,-8434.46,0.00039625,3]
[393930808,1763103040648,-8434.46,0.00039625,3]
[393930809,1763103040657,-8434.46,0.00039625,3]
[393930810,1763103040667,-8434.46,0.00039625,3]
[393930812,1763103040676,-8434.46,0.00039625,3]
[393930813,1763103040686,-8434.46,0.00039625,3]
[393930815,1763103040696,-8434.46,0.00039625,3]
[393930817,1763103040704,-8434.46,0.00039625,3]
[393930818,1763103040714,-8434.46,0.00039625,3]
[393930819,1763103040725,-8434.46,0.00039625,3]
[393930820,1763103040738,-8434.46,0.00039625,3]
[393930821,1763103040747,-8434.46,0.00039625,3]
[393930822,1763103040756,-8434.46,0.00039625,3]
[393930823,1763103040766,-8434.46,0.00039625,3]
[393930824,1763103040779,-8434.46,0.00039625,3]
[393930825,1763103040788,-8434.46,0.00039625,3]
[393930826,1763103040798,-8434.46,0.00039625,3]
[393930827,1763103040807,-8434.52,0.00039625,3]
[393930828,1763103040817,-500.0,0.00039625,10]
[393930829,1763103040826,-500.0,0.00039625,3]
[393930830,1763103040836,-500.0,0.00039625,3]
[393930831,1763103040847,-500.0,0.00039625,3]
[393930832,1763103040860,-288.60938133,0.00039625,3]
[393930833,1763103040870,-385.26358469,0.00039625,7]
[393930834,1763103040879,-500.0,0.00039625,14]
[393930835,1763103040889,-502.22545853,0.00039625,14]
[393930836,1763103040899,-500.0,0.00039625,2]
[393930837,1763103040910,-500.0,0.00039625,15]
[393930838,1763103040922,-500.0,0.00039625,2]
[393930839,1763103040935,-214.26,0.00039625,10]
[393930840,1763103040947,-3492.40263571,0.00039625,20]
[393930841,1763103040959,-190.3970847,0.00039625,20]
[393930842,1763103040971,-756.33158378,0.00039663,2]
[393930843,1763103040982,-3451.91674177,0.0003968,2]
[393930844,1763103040992,-2127.90858193,0.00039699,2]
[393930845,1763103041003,-756.33158378,0.00039731,2]
[393930846,1763103041013,-756.33158378,0.000398,2]
[393930847,1763103041026,-151.0,0.00039805,120]
[393930848,1763103041036,-151.0,0.00039805,120]
[393930849,1763103041047,-3451.91674185,0.00039822,2]
[393930850,1763103041058,-492.29,0.00039857,2]
[393930851,1763103041069,-2127.90858193,0.00039867,2]
[393930852,1763103041081,-11153.6358488,0.0003988,3]
[393930853,1763103041092,-151.0,0.0003989,120]
[393930854,1763103041106,-151.0,0.0003989,120]
[393930855,1763103041118,-167304.537732,0.0003989,3]
[393930856,1763103041130,-151.0,0.0003989,120]
[393930857,1763103041141,-339.0,0.0003989,120]
[393930858,1763103041151,-151.0,0.0003989,7]
[393930859,1763103041162,-151.0,0.0003989,120]
[393930860,1763103041173,-151.0,0.0003989,30]
[393930861,1763103041185,-151.0,0.0003989,30]
[393930862,1763103041196,-151.0,0.0003989,30]
[393930863,1763103041207,-391.533196,0.0003989,120]
[393930864,1763103041218,-391.533196,0.0003989,120]
[393930865,1763103041228,-391.533196,0.0003989,120]
[393930866,1763103041239,-391.533196,0.0003989,120]
[393930867,1763103041249,-501.89,0.00039899,2]
[393930868,1763103041261,-501.89,0.00039899,2]
[393930869,1763103041272,-501.89,0.00039899,2]
[393930870,1763103041282,-501.89,0.00039899,2]
[393930871,1763103041293,-501.89,0.00039899,2]
[393930872,1763103041303,-501.89,0.00039899,2]
[393930873,1763103041315,-501.89,0.00039899,2]
[393930874,1763103041326,-502.00469376,0.00039899,2]
[393930875,1763103041337,-340285.95221637,0.000399,2]
[393930876,1763103041356,-1000.0,0.000399,2]
[393930877,1763103041368,-926.51718496,0.000399,2]
[393930908,1763103046365,-500.0,0.00035251,7]
[393930909,1763103046376,-500.0,0.00035251,7]
[393930910,1763103046387,-500.0,0.00035251,7]
[393930911,1763103046397,-500.0,0.00035251,7]
[393930912,1763103046407,-500.0,0.00035251,7]
[393930913,1763103046416,-500.0,0.00035251,7]
[393930914,1763103046426,-500.0,0.00035251,7]
[393930915,1763103046436,-530.56750858,0.00035251,7]
[393930916,1763103046446,-339.32226249,0.00035251,7]
[393930917,1763103046457,-500.0,0.00035251,7]
[393930918,1763103046468,-500.0,0.00035251,7]
[393930919,1763103046478,-500.0,0.00035251,7]
[393930920,1763103046488,-430.75451702,0.00035251,7]
[393930921,1763103046498,-500.0,0.00035251,7]
[393930922,1763103046508,-500.0,0.00035251,7]
[393930923,1763103046519,-500.0,0.00035251,7]
[393930924,1763103046534,-500.0,0.00035251,7]
[393930925,1763103046546,-500.0,0.00035251,7]
[393930926,1763103046557,-500.0,0.00035251,7]
[393930927,1763103046569,-500.0,0.00035251,7]
[393930928,1763103046580,-500.0,0.00035251,7]
[393930929,1763103046591,-500.0,0.00035251,7]
[393930930,1763103046605,-500.0,0.00035251,7]
[393930931,1763103046615,-500.0,0.00035251,7]
[393930932,1763103046626,-500.0,0.00035251,7]
[393930933,1763103046636,-500.0,0.00035251,7]
[393930934,1763103046647,-500.0,0.00035251,7]
[393930935,1763103046657,-500.0,0.00035251,7]
[393930936,1763103046668,-500.0,0.00035251,7]
[393930937,1763103046679,-500.0,0.00035251,7]
[393930938,1763103046801,-500.0,0.00035251,7]
[393930939,1763103046815,-500.0,0.00035251,7]
[393930940,1763103046824,-500.0,0.00035251,7]
[393930941,1763103046833,-500.0,0.00035251,7]
[393930942,1763103046842,-500.0,0.00035251,7]
[393930943,1763103046854,-371.0,0.00035251,7]
[393930944,1763103046863,-500.0,0.00035251,7]
[393930945,1763103046872,-437.44315521,0.00035251,7]
[393930946,1763103046882,-500.0,0.00035251,7]
[393930947,1763103046891,-500.0,0.00035251,7]
[393930948,1763103046901,-500.0,0.00035251,7]
[393930949,1763103046910,-500.0,0.00035251,7]
[393930950,1763103046919,-500.0,0.00035251,7]
[393930951,1763103046928,-500.0,0.00035251,7]
[393930952,1763103046937,-500.0,0.00035251,7]
[393930953,1763103046950,-500.0,0.00035251,7]
[393930954,1763103046960,-500.0,0.00035251,7]
[393930955,1763103046969,-500.0,0.00035251,7]
[393930956,1763103046979,-500.0,0.00035251,7]
[393930957,1763103046989,-500.0,0.00035251,7]
[393930958,1763103046998,-500.0,0.00035251,7]
[393930959,1763103047007,-500.0,0.00035251,7]
[393930960,1763103047017,-523.51748339,0.00039625,12]
[393930961,1763103047026,-1371.9,0.0003989,10]
[393930962,1763103047035,-25578.74472308,0.000399,2]
[393930963,1763103047047,-9513.2496019,0.000399,2]
[393930964,1763103047074,-500.0,0.00035251,7]
[393930965,1763103047083,-500.0,0.00035251,7]
[393930966,1763103047093,-500.0,0.00035251,7]
[393930967,1763103047106,-59785.00322874,0.000399,2]
[393930968,1763103047136,-500.0,0.00035251,7]
[393930969,1763103047146,-152.86860609,0.00035251,7]
[393930970,1763103047174,-347.13139391,0.00035251,7]
[393930971,1763103047183,-500.0,0.00035251,7]
[393930972,1763103047193,-500.0,0.00035251,7]
[393930973,1763103047202,-500.0,0.00035251,7]
[393930974,1763103047211,-500.0,0.00035251,7]
[393930975,1763103047221,-315.13583788,0.00035251,7]
[393930976,1763103047247,-184.86416212,0.00035251,7]
[393930977,1763103047257,-500.0,0.00035251,7]
[393930978,1763103047266,-500.0,0.00035251,7]
[393930979,1763103047276,-500.0,0.00035251,7]
[393930980,1763103047286,-500.0,0.00035251,7]
[393930981,1763103047297,-500.0,0.00035251,7]
[393930982,1763103047307,-500.0,0.00035251,7]
[393930983,1763103047316,-16025.13583788,0.000399,2]
[393930989,1763103110164,500.0,0.00039625,20]
[393930990,1763103110434,500.0,0.00039625,20]
[393930991,1763103110698,500.0,0.00039625,20]
[393930992,1763103110946,340.0,0.00039625,20]
[393930996,1763103144434,460.0,0.00039625,20]
[393931052,1763103172509,196.59086297,0.00039625,20]
[393931057,1763103174037,531.09033604,0.00039625,20]
[393931059,1763103175936,500.0,0.00039625,20]
[393931060,1763103175996,500.0,0.00039625,20]
[393931068,1763103191096,500.0,0.00039625,20]
[393931069,1763103192170,507.98082721,0.00039625,20]
[393931073,1763103194715,500.0,0.00039625,20]
[393931076,1763103197759,500.0,0.00039625,20]
[393931077,1763103208717,500.0,0.00039625,20]
[393931078,1763103213912,467.14022272,0.00039625,20]
[393931079,1763103216206,500.0,0.00039625,20]
[393931080,1763103217081,150.0,0.0002589,2]
[393931081,1763103219939,500.0,0.00039625,20]
[393931082,1763103225422,500.0,0.00039608,20]
[393931083,1763103226509,500.0,0.00039608,20]
[393931084,1763103227235,490.32530571,0.00039608,20]
[393931085,1763103231550,500.0,0.00039608,20]
[393931086,1763103234133,500.0,0.00039608,20]
[393931087,1763103234369,500.0,0.00039608,20]
[393931088,1763103234598,220.03,0.00039608,20]
[393931089,1763103237399,500.0,0.00039608,20]
[393931109,1763103312839,480.0,0.00039608,20]
[393931113,1763103390147,500.0,0.00039608,20]
[393931116,1763103395467,460.0,0.00039608,20]
[393931118,1763103398372,500.0,0.00039608,20]
[393931119,1763103398631,212.97550968,0.00039608,20]
[393931131,1763103411850,501.11015088,0.00039608,20]
[393931136,1763103415585,500.0,0.00039608,20]
[393931137,1763103415836,182.35,0.00039608,20]
[393931151,1763103430139,507.54324969,0.00039608,20]
[393931160,1763103460885,594.74473578,0.00039608,20]
[393931161,1763103474315,500.0,0.00039608,20]
[393931162,1763103493776,258.64635605,0.00026103,2]
[393931195,1763103503753,505.99827723,0.00039608,20]
[393931200,1763103514423,505.05258032,0.00039608,20]
[393931207,1763103532384,500.0,0.00039672,20]
[393931210,1763103536988,150.0,0.0002589,2]
[393931213,1763103544414,-177.0,0.0002789,2]
[393931216,1763103549350,460.0,0.00039672,20]
[393931218,1763103551810,500.0,0.00039672,20]
[393931219,1763103552061,500.0,0.00039672,20]
[393931220,1763103552605,594.04,0.00039672,20]
[393931274,1763103617760,5000.0,0.00039672,20]
[393931278,1763103625990,7000.0,0.00039672,20]
[393931285,1763103635045,500.0,0.00039672,20]
[393931286,1763103635289,500.0,0.00039672,20]
[393931288,1763103635862,500.0,0.00039672,20]
[393931289,1763103645276,4629.0,0.00039672,20]
[393931290,1763103646051,480.0,0.00039672,20]
[393931309,1763103722543,240.02651322,0.00039672,20]
[393931328,1763103860828,432.86069012,0.00039672,20]
[393931351,1763104082463,400.38245665,0.0003288,120]
[393931358,1763104139645,1250.0,0.00039672,20]
[393931359,1763104139791,1250.0,0.00039672,20]
[393931360,1763104140035,1250.0,0.00039672,20]
[393931361,1763104140290,1250.0,0.00039672,20]
[393931362,1763104140566,1250.0,0.00039672,20]
[393931363,1763104140834,1250.0,0.00039672,20]
[393931364,1763104141079,1250.0,0.00039672,20]
[393931365,1763104141306,1250.0,0.00039672,20]
[393931366,1763104141600,1250.0,0.00039672,20]
[393931367,1763104141806,1250.0,0.00039672,20]
[393931368,1763104142069,1250.0,0.00039672,20]
[393931369,1763104142343,1250.0,0.00039672,20]
[393931370,1763104142613,1250.0,0.00039672,20]
[393931371,1763104142866,1250.0,0.00039672,20]
[393931372,1763104143112,1250.0,0.00039672,20]
[393931373,1763104143377,1250.0,0.00039672,20]
[393931374,1763104143626,1250.0,0.00039672,20]
[393931375,1763104143882,1250.0,0.00039672,20]
[393931376,1763104144138,1250.0,0.00039672,20]
[393931377,1763104144390,1250.0,0.00039672,20]
[393931378,1763104144627,1250.0,0.00039672,20]
[393931379,1763104144870,1250.0,0.00039672,20]
[393931380,1763104145181,1250.0,0.00039672,20]
[393931381,1763104145437,1250.0,0.00039672,20]
[393931419,1763104232185,-150.0,0.00025547,2]
[393931421,1763104232194,-983.67,0.00027,2]
[393931423,1763104232206,-177.0,0.00027547,2]
[393931425,1763104232217,-204.0,0.00029547,2]
[393931427,1763104232226,-231.0,0.00031547,2]
[393931429,1763104232235,-258.64635605,0.000318,2]
[393931431,1763104232245,-258.0,0.00033547,120]
[393931433,1763104232255,-380.0,0.0003362,2]
[393931435,1763104232268,-400.0,0.00034639,2]
[393931437,1763104232279,-379.0,0.00034639,3]
[393931439,1763104232289,-2813.7233643,0.0003464,2]
[393931441,1763104232300,-160.0,0.00034645,2]
[393931443,1763104232309,-173.772155,0.00034865,2]
[393931445,1763104232320,-150.0,0.00034889,2]
[393931448,1763104232330,-150.0,0.00034889,2]
[393931450,1763104232339,-150.0,0.00034889,2]
[393931452,1763104232349,-987.0,0.00034889,2]
[393931455,1763104232359,-629.0,0.00034889,2]
[393931458,1763104232369,-2161.0,0.00034889,2]
[393931461,1763104232378,-413.0,0.00034889,2]
[393931465,1763104232388,-198.0,0.00035,120]
[393931469,1763104232398,-151.0,0.00035,14]
[393931472,1763104232407,-5000.0,0.00035125,2]
[393931474,1763104232418,-285.0,0.00035547,120]
[393931476,1763104232428,-168.0,0.00035596,2]
[393931478,1763104232440,-500.0,0.00035638,5]
[393931480,1763104232450,-186.157,0.00035783,43]
[393931482,1763104232459,-168.0,0.00035783,2]
[393931484,1763104232468,-500.0,0.00035783,5]
[393931486,1763104232478,-500.0,0.00035954,20]
[393931488,1763104232487,-472.02817381,0.00035954,2]
[393931490,1763104232496,-500.0,0.00035954,20]
[393931492,1763104232505,-300.0,0.00035955,30]
[393931494,1763104232519,-300.0,0.00035955,30]
[393931496,1763104232529,-300.0,0.00035955,30]
[393931498,1763104232539,-300.0,0.00035955,30]
[393931500,1763104232548,-300.0,0.00035955,30]
[393931501,1763104232558,-300.0,0.00035955,30]
[393931503,1763104232567,-300.0,0.00035955,30]
[393931505,1763104232577,-300.0,0.00035955,30]
[393931507,1763104232586,-300.0,0.00035955,30]
[393931509,1763104232595,-300.0,0.00035955,30]
[393931511,1763104232604,-300.0,0.00035955,30]
[393931513,1763104232613,-300.0,0.00035955,30]
[393931515,1763104232622,-300.0,0.00035955,30]
[393931517,1763104232631,-300.0,0.00035955,30]
[393931519,1763104232640,-300.0,0.00035955,30]
[393931521,1763104232649,-600.0,0.00035955,30]
[393931523,1763104232658,-500.0,0.00035955,30]
[393931525,1763104232667,-500.58691999,0.0003616,5]
[393931527,1763104232676,-501.64618163,0.0003616,5]
[393931529,1763104232685,-162.30300803,0.0003616,5]
[393931531,1763104232694,-151.0,0.0003616,2]
[393931533,1763104232703,-245.0,0.0003616,5]
[393931535,1763104232712,-151.0,0.00036187,2]
[393931537,1763104232722,-208.27854692,0.00036215,2]
[393931539,1763104232731,-501.1,0.0003631,2]
[393931541,1763104232740,-2087.53294015,0.00036459,2]
[393931542,1763104232749,-500.0,0.00036735,5]
[393931544,1763104232758,-560.0,0.00037154,2]
[393931546,1763104232770,-168.0,0.00037156,2]
[393931548,1763104232779,-1000.0,0.00037283,5]
[393931550,1763104232788,-168.0,0.00037433,2]
[393931552,1763104232797,-258.64635605,0.00037497,2]
[393931554,1763104232807,-482.14691806,0.00037521,15]
[393931556,1763104232815,-319.0,0.00037521,15]
[393931558,1763104232824,-447.84083429,0.00037521,15]
[393931560,1763104232833,-500.0,0.00037521,7]
[393931562,1763104232842,-500.0,0.00037521,15]
[393931564,1763104232851,-500.0,0.00037521,7]
[393931566,1763104232861,-604.16035058,0.00037521,15]
[393931568,1763104232870,-500.0,0.00037521,7]
[393931570,1763104232879,-500.0,0.00037521,7]
[393931572,1763104232888,-500.0,0.00037521,7]
[393931573,1763104232896,-500.0,0.00037521,7]
[393931575,1763104232906,-500.0,0.00037521,7]
[393931577,1763104232915,-500.0,0.00037521,7]
[393931579,1763104232924,-500.0,0.00037521,7]
[393931581,1763104232934,-500.0,0.00037521,7]
[393931583,1763104232943,-500.0,0.00037521,7]
[393931585,1763104232952,-500.0,0.00037521,7]
[393931587,1763104232961,-500.0,0.00037521,7]
[393931589,1763104232971,-500.0,0.00037521,7]
[393931591,1763104232980,-500.0,0.00037521,7]
[393931593,1763104232989,-500.0,0.00037521,7]
[393931594,1763104232998,-500.0,0.00037521,7]
[393931596,1763104233007,-500.0,0.00037521,7]
[393931598,1763104233019,-500.0,0.00037521,7]
[393931600,1763104233028,-500.0,0.00037521,7]
[393931602,1763104233037,-500.0,0.00037521,7]
[393931604,1763104233047,-500.0,0.00037521,7]
[393931606,1763104233056,-500.0,0.00037521,7]
[393931608,1763104233065,-500.0,0.00037521,7]
[393931610,1763104233075,-500.0,0.00037521,7]
[393931612,1763104233084,-500.0,0.00037521,7]
[393931614,1763104233094,-500.0,0.00037521,7]
[393931616,1763104233104,-500.0,0.00037521,7]
[393931618,1763104233115,-500.0,0.00037521,7]
[393931620,1763104233125,-500.0,0.00037521,7]
[393931622,1763104233137,-500.0,0.00037521,7]
[393931624,1763104233146,-500.0,0.00037521,7]
[393931626,1763104233155,-500.0,0.00037521,7]
[393931628,1763104233166,-252.45855893,0.00037521,7]
[393931630,1763104233175,-500.0,0.00037521,7]
[393931631,1763104233183,-500.0,0.00037521,7]
[393931633,1763104233193,-500.0,0.00037521,7]
[393931635,1763104233202,-500.0,0.00037521,7]
[393931637,1763104233211,-500.0,0.00037521,7]
[393931639,1763104233220,-500.0,0.00037521,7]
[393931641,1763104233229,-500.0,0.00037521,7]
[393931643,1763104233239,-312.0,0.00037548,120]
[393931645,1763104233249,-584.62,0.00037706,2]
[393931647,1763104233258,-150.0,0.00037889,2]
[393931649,1763104233270,-150.0,0.00037889,2]
[393931651,1763104233279,-150.0,0.00037889,2]
[393931653,1763104233288,-987.0,0.00037889,2]
[393931655,1763104233297,-629.0,0.00037889,2]
[393931657,1763104233306,-2161.0,0.00037889,2]
[393931659,1763104233316,-413.0,0.00037889,2]
[393931661,1763104233325,-162.38935248,0.00038979,15]
[393931663,1763104233335,-307.36,0.0003898,3]
[393931665,1763104233348,-64207.3249631,0.0003898,3]
[393931667,1763104233358,-100000.0,0.0003899,2]
[393931669,1763104233366,-668.14,0.00039103,2]
[393931671,1763104233376,-32103.6624815,0.00039165,3]
[393931673,1763104233386,-302.2367379,0.00039173,5]
[393931676,1763104233395,-150.0,0.00039173,5]
[393931677,1763104233405,-500.0,0.00039173,5]
[393931679,1763104233414,-169.2523864,0.00039173,5]
[393931681,1763104233424,-500.0,0.00039173,5]
[393931683,1763104233433,-505.97945433,0.00039173,20]
[393931685,1763104233442,-3243.7813962,0.00039174,2]
[393931687,1763104233452,-31925.0465183,0.00039175,2]
[393931690,1763104233462,-500.0,0.00039473,5]
[393931691,1763104233471,-150.0,0.00039473,5]
[393931693,1763104233481,-500.01,0.00039473,30]
[393931695,1763104233490,-1000.0,0.00039489,2]
[393931697,1763104233499,-236.263936,0.0003949,2]
[393931699,1763104233508,-151.0,0.0003949,120]
[393931701,1763104233521,-151.0,0.0003949,120]
[393931704,1763104233530,-160518.312408,0.0003949,3]
[393931705,1763104233540,-168.644765,0.0003949,120]
[393931707,1763104233549,-210.396362,0.0003949,7]
[393931710,1763104233558,-151.332133,0.0003949,2]
[393931712,1763104233568,-151.0,0.0003949,120]
[393931713,1763104233577,-151.0,0.0003949,30]
[393931715,1763104233586,-304430.11646741,0.000395,2]
[393932112,1763104238174,-150.0,0.00029643,2]
[393932114,1763104238183,-167.03,0.00031054,2]
[393932116,1763104238193,-250.55,0.00032466,2]
[393932118,1763104238203,-334.07,0.00033878,2]
[393932120,1763104238212,-73.2263426,0.00035289,2]
[393932241,1763104244975,-344.3636574,0.00035289,2]
[393932242,1763104244986,-501.1,0.00036701,2]
[393932243,1763104244997,-584.62,0.00038112,2]
[393932244,1763104245094,-1143.25,0.0003949,10]
[393932245,1763104245104,-151.0,0.0003949,120]
[393932246,1763104245114,-151.0,0.0003949,120]
[393932247,1763104245128,-3555.7663426,0.000395,2]
[393932248,1763104245139,-348.64344589,0.000395,2]
[393932253,1763104246615,-468665.4737441,0.000395,2]
[393932254,1763104246625,-153.410668,0.000395,120]
[393932255,1763104246634,-160.014457,0.000395,2]
[393932256,1763104246643,-157.563347,0.000395,120]
[393932257,1763104246653,-151.0,0.000395,120]
[393932258,1763104246662,-151.0,0.000395,120]
[393932259,1763104246682,-151.0,0.000395,120]
[393932260,1763104246693,-151.0,0.000395,30]
[393932261,1763104246704,-151.0,0.000395,120]
[393932262,1763104246715,-151.0,0.000395,120]
[393932263,1763104246726,-339.0,0.00039547,120]
[393932264,1763104246737,-160.014457,0.0003955,2]
[393932265,1763104246747,-720.0,0.00039551,90]
[393932266,1763104246763,-765.54160069,0.000396,120]
[393932267,1763104246775,-166.26373964,0.000396,120]
[393932268,1763104246790,-205.31647299,0.000396,120]
[393932269,1763104246800,-155.28416669,0.000396,20]
[393932270,1763104246811,-160.014457,0.000396,2]
[393932271,1763104246822,-160.014457,0.0003963,10]
[393932272,1763104246833,-494.58838953,0.00039647,2]
[393932273,1763104246843,-160.014457,0.0003965,2]
[393932274,1763104246854,-305.799999,0.0003967,20]
[393932275,1763104246865,-2000.0,0.00039672,20]
[393932276,1763104246874,-661.36,0.00039672,120]
[393932277,1763104246884,-236.13,0.00039672,20]
[393932278,1763104246894,-5000.0,0.00039672,20]
[393932279,1763104246904,-1339.61935348,0.00039672,20]
[393932314,1763104376440,500.0,0.00039672,20]
[393932315,1763104376668,500.0,0.00039672,20]
[393932316,1763104376918,500.0,0.00039672,20]
[393932317,1763104377189,500.0,0.00039672,20]
[393932318,1763104377485,500.0,0.00039672,20]
[393932319,1763104377726,446.531191,0.00039672,20]
[393932425,1763104597990,500.0,0.00039656,20]
[393932426,1763104598241,500.0,0.00039656,20]
[393932427,1763104598497,500.0,0.00039656,20]
[393932428,1763104598773,500.0,0.00039656,20]
[393932429,1763104599024,500.0,0.00039656,20]
[393932430,1763104599291,500.0,0.00039656,20]
[393932431,1763104599539,180.009926,0.00039656,20]
[393932432,1763104624388,7354.53,0.00039656,20]
[393932433,1763104624643,7354.53,0.00039656,20]
[393932434,1763104624882,7354.53,0.00039656,20]
[393932435,1763104625164,7354.53,0.00039656,20]
[393932436,1763104625445,7354.53,0.00039656,20]
[393932437,1763104625657,7354.53,0.00039656,20]
[393932438,1763104626168,7354.53,0.00039656,20]
[393932439,1763104626418,7354.53,0.00039656,20]
[393932440,1763104626664,7354.53,0.00039656,20]
[393932441,1763104626967,7354.53,0.00039656,20]
[393932442,1763104627197,7354.53,0.00039656,20]
[393932443,1763104627452,7354.53,0.00039656,20]
[393932444,1763104627688,7354.53,0.00039656,20]
[393932445,1763104627931,7354.53,0.00039656,20]
[393932446,1763104628398,7354.53,0.00039656,20]
[393932447,1763104628577,7354.53,0.00039656,20]
[393932448,1763104628867,7354.53,0.00039656,20]
[393932449,1763104629113,7354.53,0.00039656,20]
[393932450,1763104629380,7354.53,0.00039656,20]
[393932451,1763104629625,7354.53,0.00039656,20]
[393932452,1763104629893,7354.53,0.00039656,20]
[393932453,1763104630100,7354.53,0.00039656,20]
[393932454,1763104630349,7354.53,0.00039656,20]
[393932455,1763104630862,7354.63504494,0.00039656,20]
[393932457,1763104742762,231.083211,0.00013699,2]
[393932458,1763104742965,231.083211,0.00020187,2]
[393932483,1763104809343,-1907.92784428,0.00025631,2]
[393932484,1763104813643,-150.0,0.00025418,2]
[393932485,1763104813668,-350.0,0.00025631,2]
[393932492,1763104830362,5000.0,0.00025206,2]
[393932495,1763104839939,4537.843578,0.00025205,10]
[393932496,1763104839963,500.156422,0.00025205,10]
[393932497,1763104852126,5000.0,0.00025206,2]
[393932498,1763104860212,3200.0,0.00025206,2]
[393932499,1763104875148,1299.853578,0.00025206,2]
[393932500,1763104875172,3700.146422,0.00025206,2]
[393932501,1763104897774,4904.68199236,0.00025206,2]
[393932513,1763104965027,500.0,0.00039693,20]
[393932514,1763104965284,500.0,0.00039693,20]
[393932515,1763104965590,500.0,0.00039693,20]
[393932516,1763104965866,500.0,0.00039693,20]
[393932517,1763104966067,500.0,0.00039693,20]
[393932518,1763104966298,500.0,0.00039693,20]
[393932519,1763104966538,500.0,0.00039693,20]
[393932522,1763104966768,500.0,0.00039693,20]
[393932523,1763104966994,500.0,0.00039693,20]
[393932524,1763104967257,500.0,0.00039693,20]
[393932599,1763105243588,200737.2710231,0.00039692,20]
[393932605,1763105303071,1395.18158564,0.0002,2]
[393932606,1763105303094,5745.74116708,0.0002,2]
[393932608,1763105307322,369.23014333,0.0002,2]
[393932609,1763105308233,1380.14677481,0.0002061,2]
[393932613,1763105308816,3371.93649244,0.00039692,30]
[393932656,1763105313064,2504.89191478,0.0002,2]
[393932657,1763105313087,10000.01,0.0002,2]
[393932659,1763105313110,10000.01,0.0002,2]
[393932660,1763105313132,495.08808522,0.0002,2]
[393932661,1763105314172,201.35223155,0.0002,2]
[393932665,1763105315707,9303.56968323,0.0002465,2]
[393932666,1763105315733,1084.62247131,0.0002465,2]
[393932668,1763105317422,8915.38752869,0.00024142,2]
[393932669,1763105317446,10000.01,0.00024142,2]
[393932670,1763105317470,859.39987969,0.00024142,2]
[393932673,1763105318816,4085.92351923,0.0002,2]
[393932676,1763105386478,774.30381953,0.00025206,2]
[393932704,1763105432624,-150.0,0.00025654,2]
[393932705,1763105432635,-204.29729275,0.00026103,2]